bitfinex-derivatives/quotes_SOLF0:USTF0_20241027
["timestamp","ask_amount","ask_price","bid_price","bid_amount"]
[1730025074225,2.8761,174.05,173.99,2.877]
[1730025074429,4.14,174.04,173.92,4.14]
[1730025074617,55.92,174.08,173.92,4.14]
[1730025074926,4.14,174.07,173.92,4.14]
[1730025075717,55.92,174.08,173.92,4.14]
[1730025075920,4.14,174.11,173.92,4.14]
[1730025076432,4.14,174.11,173.93,1.0]
[1730025076627,4.14,174.11,173.92,4.14]
[1730025076829,4.14,174.11,173.98,2.8771]
[1730025077122,4.14,174.11,173.99,7.8369]
[1730025078425,4.14,174.11,174.07,2.8755]
[1730025080929,4.14,174.11,173.99,7.8369]
[1730025081722,4.14,174.11,174.08,2.8754]
[1730025085126,4.14,174.11,173.99,7.8369]
[1730025085127,7.015,174.11,174.07,2.8756]
[1730025085624,7.015,174.11,174.01,4.14]
[1730025085826,7.015,174.11,174.06,2.8758]
[1730025085827,2.8752,174.1,174.06,2.8758]
[1730025086933,4.14,174.11,174.01,4.14]
[1730025088433,4.14,174.11,174.08,2.8754]
[1730025093134,2.8753,174.1,174.06,2.8757]
[1730025094933,4.14,174.11,173.99,3.6969]
[1730025095234,2.8754,174.09,174.05,2.8759]
[1730025096426,4.14,174.11,173.99,7.8369]
[1730025096629,4.14,174.11,174.04,2.876]
[1730025096935,4.14,174.11,173.99,3.6969]
[1730025096936,1.2376,174.1,173.99,3.6969]
[1730025098032,4.1128,174.1,174.06,2.8758]
[1730025100132,4.14,174.11,173.99,3.6969]
[1730025100931,1.161,174.14,173.99,3.6969]
[1730025101137,7.0147,174.13,174.09,2.8753]
[1730025103140,4.14,174.13,174.01,4.14]
[1730025103330,4.14,174.13,174.1,2.875]
[1730025103937,4.14,174.13,174.01,4.14]
[1730025105138,4.14,174.13,174.09,2.8753]
[1730025106048,7.0147,174.13,174.09,2.8753]
[1730025109156,4.14,174.13,174.1,2.8751]
[1730025113861,7.0147,174.13,174.1,2.8751]
[1730025119870,1.161,174.14,173.99,3.6969]
[1730025120061,4.14,174.12,173.99,3.6969]
[1730025120861,2.8755,174.08,173.99,3.6969]
[1730025121065,4.14,174.07,173.99,3.6969]
[1730025121563,4.14,174.07,174.04,2.876]
[1730025123872,4.14,174.07,174.04,2.8761]
[1730025128376,4.14,174.07,173.99,3.6969]
[1730025128576,4.14,174.07,174.01,2.8766]
[1730025128577,2.876,174.05,174.01,2.8766]
[1730025129378,7.0157,174.07,174.03,2.8762]
[1730025129573,4.14,174.07,173.99,1.1917]
[1730025130383,4.14,174.07,174.04,2.876]
[1730025131671,2.8755,174.08,174.04,2.876]
[1730025131869,4.14,174.07,174.06,2.8758]
[1730025132673,2.8749,174.12,174.07,2.8756]
[1730025132980,4.14,174.11,174.02,1.1587]
[1730025133283,4.14,174.11,174.07,2.8756]
[1730025134981,7.015,174.11,174.07,2.8756]
[1730025136277,4.14,174.11,173.99,1.1917]
[1730025136484,4.14,174.11,174.0,1.43851943]
[1730025136685,4.14,174.11,174.01,1.43851943]
[1730025136880,4.14,174.11,174.02,1.43851943]
[1730025137184,4.14,174.11,173.99,1.1917]
[1730025137384,4.14,174.11,174.0,1.43853011]
[1730025137581,4.14,174.11,174.01,1.43853011]
[1730025137777,4.14,174.11,174.02,1.43853011]
[1730025137982,2.8756,174.08,174.02,2.8764]
[1730025138179,4.14,174.07,173.99,1.1917]
[1730025138376,4.14,174.07,174.0,1.43853011]
[1730025138583,4.14,174.07,174.01,1.43853011]
[1730025138782,4.14,174.07,174.02,1.43853011]
[1730025139085,4.14,174.07,173.99,1.1917]
[1730025139280,4.14,174.07,174.04,2.876]
[1730025140591,4.14,174.07,174.06,2.8758]
[1730025144076,4.14,174.07,173.99,1.1917]
[1730025144278,4.14,174.07,174.0,1.43852978]
[1730025144582,4.14,174.07,174.01,1.43852978]
[1730025144777,4.14,174.07,174.02,1.43852978]
[1730025144983,4.14,174.07,174.03,1.43852978]
[1730025145196,4.14,174.07,174.04,1.43852978]
[1730025145394,4.14,174.07,173.99,1.1917]
[1730025145692,4.14,174.06,174.0,1.43859073]
[1730025145889,4.14,174.06,174.02,2.8764]
[1730025146089,4.14,174.06,174.03,1.43859073]
[1730025146283,4.14,174.06,174.02,2.8764]
[1730025146486,4.14,174.06,174.03,1.43859915]
[1730025146687,4.14,174.06,174.02,2.8764]
[1730025146887,4.14,174.06,174.03,1.43859931]
[1730025147093,4.14,174.06,173.97,1.2012]
[1730025147496,2.8763,174.04,173.99,2.8769]
[1730025147691,2.8763,174.04,174.0,1.4387717]
[1730025147895,2.8763,174.04,174.01,1.4387717]
[1730025148194,2.8763,174.04,174.0,2.8768]
[1730025149589,2.8763,174.04,174.01,2.8766]
[1730025152002,4.14,174.06,173.94,1.1992]
[1730025152293,4.14,174.06,173.95,1.43884218]
[1730025152498,2.8764,174.03,173.98,2.877]
[1730025152697,4.14,174.02,173.99,1.43884218]
[1730025152889,4.14,174.02,173.98,2.877]
[1730025153092,4.14,174.02,173.99,4.31583549]
[1730025153294,4.14,174.02,173.99,2.877]
[1730025158400,7.0165,174.02,173.99,2.877]
[1730025160604,4.14,174.02,173.99,2.877]
[1730025161394,7.0166,174.02,173.98,2.877]
[1730025161700,7.0166,174.02,173.94,2.3627]
[1730025161901,7.0166,174.02,173.95,1.43888801]
[1730025162103,7.0166,174.02,173.96,1.43888801]
[1730025162410,4.14,174.02,173.99,2.877]
[1730025163500,4.14,174.02,173.96,1.43899718]
[1730025163697,4.14,174.02,173.98,2.8771]
[1730025164500,7.0166,174.02,173.98,2.877]
[1730025166503,7.0166,174.02,173.99,2.877]
[1730025169499,4.14,174.02,173.94,2.3627]
[1730025171406,2.8769,174.0,173.97,2.8773]
[1730025172407,4.14,174.02,173.97,2.8773]
[1730025172603,2.8767,174.01,173.97,2.8773]
[1730025175110,4.14,174.02,173.93,1.1765]
[1730025175413,4.14,174.02,173.94,2.8777]
[1730025175606,2.3826,174.01,173.94,2.8777]
[1730025177216,2.3826,174.01,173.88,1.2242]
[1730025177217,2.3826,174.01,173.93,2.878]
[1730025177403,2.3826,174.01,173.88,1.2242]
[1730025177609,2.3826,174.01,173.89,1.4391577]
[1730025177809,2.8773,173.98,173.88,1.2242]
[1730025178012,4.14,173.97,173.89,1.43919754]
[1730025178209,4.14,173.96,173.9,1.43919778]
[1730025178409,4.14,173.96,173.88,1.2242]
[1730025178410,4.14,173.96,173.92,2.878]
[1730025179915,4.14,173.96,173.9,1.43920743]
[1730025180113,4.14,173.96,173.88,1.2242]
[1730025180114,4.14,173.96,173.91,1.43920743]
[1730025180318,4.14,173.96,173.88,1.2242]
[1730025180519,4.14,173.96,173.89,1.43917784]
[1730025180811,4.14,173.96,173.88,1.2242]
[1730025181014,4.14,173.96,173.9,1.43917784]
[1730025181207,4.14,173.96,173.91,1.43917784]
[1730025181408,4.14,173.96,173.88,1.2242]
[1730025181613,4.14,173.96,173.89,1.43917177]
[1730025181813,4.14,173.96,173.9,1.43917177]
[1730025182014,4.14,173.96,173.88,1.2242]
[1730025182015,4.14,173.96,173.91,1.43917177]
[1730025182313,4.14,173.96,173.94,2.8777]
[1730025183519,4.14,173.96,173.9,1.43917784]
[1730025183714,4.14,173.96,173.91,1.43917784]
[1730025183914,4.14,173.96,173.88,1.2242]
[1730025184121,4.14,173.96,173.92,1.4391685]
[1730025184318,4.14,173.96,173.94,2.8777]
[1730025190324,4.14,173.96,173.95,2.8776]
[1730025206738,7.0176,173.96,173.92,2.8781]
[1730025207946,4.14,173.96,173.88,1.2242]
[1730025208145,2.8777,173.95,173.91,2.8782]
[1730025214955,2.8777,173.95,173.88,1.2242]
[1730025215157,2.8777,173.95,173.92,2.8781]
[1730025221660,7.0175,173.96,173.92,2.8781]
[1730025224066,7.0175,173.96,173.89,2.8786]
[1730025224067,2.8782,173.92,173.89,2.8786]
[1730025224264,4.14,173.91,173.89,2.8786]
[1730025224573,4.14,173.9,173.89,2.8786]
[1730025227463,2.8779,173.94,173.9,2.8784]
[1730025227671,4.14,173.93,173.9,2.8784]
[1730025228379,4.14,173.93,173.91,2.8783]
[1730025228766,4.14,173.93,173.84,1.2448]
[1730025229570,4.14,173.93,173.91,2.8782]
[1730025229766,4.14,173.92,173.91,2.8782]
[1730025236375,4.14,173.96,173.94,2.8778]
[1730025236566,4.14,173.96,173.84,5.3848]
[1730025237366,4.14,173.96,173.93,2.878]
[1730025237771,4.14,173.96,173.84,5.3848]
[1730025237971,7.0175,173.96,173.87,2.8789]
[1730025238271,7.0175,173.96,173.84,5.3848]
[1730025239277,7.0175,173.96,173.91,2.8782]
[1730025239472,7.0175,173.96,173.84,5.3848]
[1730025240270,7.0175,173.96,173.92,2.8781]
[1730025242472,2.8777,173.95,173.92,2.8781]
[1730025243580,2.878,173.93,173.89,2.8786]
[1730025243780,4.14,173.92,173.89,2.8786]
[1730025243986,5.38603995,174.02,173.89,2.8786]
[1730025243987,4.14,173.91,173.89,2.8786]
[1730025245282,4.14,173.91,173.84,1.2448]
[1730025245470,4.14,173.91,173.87,2.8788]
[1730025245677,4.14,173.91,173.84,1.2448]
[1730025245878,4.14,173.91,173.87,2.8788]
[1730025246383,4.14,173.91,173.84,1.2448]
[1730025247287,4.14,173.91,173.81,2.4454]
[1730025247488,5.3454,173.91,173.75,1.2101]
[1730025247678,5.3454,173.91,173.79,2.8803]
[1730025247679,2.8792,173.86,173.79,2.8803]
[1730025247879,4.14,173.85,173.79,2.8803]
[1730025248175,4.14,173.84,173.75,1.2101]
[1730025248379,7.0197,173.83,173.75,1.2101]
[1730025248584,4.14,173.82,173.75,1.2101]
[1730025248776,4.14,173.81,173.76,2.4288]
[1730025249081,4.14,173.83,173.76,2.4288]
[1730025249386,4.14,173.83,173.82,2.8798]
[1730025253985,1.2763,173.9,173.76,2.4288]
[1730025254193,7.0187,173.89,173.76,6.5688]
[1730025254689,4.14,173.88,173.76,6.5688]
[1730025255285,4.14,173.88,173.84,2.8794]
[1730025260795,7.0188,173.88,173.84,2.8794]
[1730025267296,4.14,173.87,173.84,2.8794]
[1730025270404,7.019,173.87,173.84,2.8794]
[1730025271001,4.14,173.87,173.76,6.5688]
[1730025271203,4.14,173.87,173.83,2.8796]
[1730025271598,4.14,173.87,173.76,6.5688]
[1730025272710,7.0191,173.87,173.76,6.5688]
[1730025273510,7.0191,173.87,173.83,2.8795]
[1730025275701,7.0191,173.87,173.76,6.5688]
[1730025276005,4.14,173.87,173.76,6.5688]
[1730025276207,2.8792,173.86,173.76,6.5688]
[1730025277302,2.8792,173.86,173.83,2.8796]
[1730025280522,4.14,173.87,173.83,2.8796]
[1730025280715,7.019,173.87,173.83,2.8796]
[1730025285022,7.019,173.87,173.76,6.5688]
[1730025285318,7.019,173.87,173.84,2.8795]
[1730025287020,4.14,173.87,173.76,6.5688]
[1730025287220,4.14,173.87,173.85,2.8792]
[1730025287524,4.14,173.87,173.76,6.5688]
[1730025287719,7.0191,173.87,173.83,2.8795]
[1730025289821,2.8796,173.84,173.8,2.88]
[1730025290120,4.14,173.83,173.76,2.4288]
[1730025292216,4.14,173.83,173.8,2.88]
[1730025293125,4.14,173.83,173.8,2.8801]
[1730025293428,4.14,173.83,173.76,1.2161]
[1730025293822,4.14,173.83,173.82,2.8798]
[1730025296022,2.879,173.87,173.83,2.8796]
[1730025296324,4.14,173.86,173.83,2.8796]
[1730025298731,7.0191,173.86,173.83,2.8796]
[1730025302237,4.14,173.85,173.76,5.3561]
[1730025302927,4.14,173.87,173.76,5.3561]
[1730025303233,180.54237833,173.92,173.88,2.8788]
[1730025303234,4.14,173.89,173.88,2.8788]
[1730025304429,180.54237833,173.92,173.82,1.1677]
[1730025304634,4.14,173.91,173.89,2.8785]
[1730025306836,4.14,173.92,173.82,1.1677]
[1730025307329,4.14,173.92,173.91,2.8783]
[1730025307645,4.14,173.95,173.85,4.14]
[1730025307936,4.14,173.95,173.94,2.8778]
[1730025310333,4.12,173.95,173.94,2.8778]
[1730025317247,2.8778,173.94,173.9,2.8783]
[1730025317449,2.8778,173.94,173.85,4.14]
[1730025317450,4.12,173.95,173.85,4.14]
[1730025318143,4.12,173.95,173.93,2.8779]
[1730025320145,2.8768,174.0,173.96,2.8773]
[1730025320347,4.12,173.99,173.96,2.8773]
[1730025320943,6.997,173.99,173.85,4.14]
[1730025321144,6.997,173.99,173.95,2.8776]
[1730025323752,4.12,173.98,173.96,2.8774]
[1730025335754,4.12,173.98,173.97,2.8773]
[1730025342967,4.12,173.98,173.96,2.8775]
[1730025346168,4.12,173.98,173.91,1.2407]
[1730025346767,4.12,173.98,173.96,2.8773]
[1730025349169,4.12,173.98,173.91,1.2407]
[1730025349366,4.12,173.98,173.97,2.8773]
[1730025349570,4.12,173.98,173.91,1.2407]
[1730025349767,6.9972,173.98,173.94,2.8778]
[1730025350873,6.9972,173.98,173.95,2.8776]
[1730025352171,4.12,173.98,173.95,2.8776]
[1730025353274,4.12,173.98,173.91,1.2407]
[1730025353469,4.12,173.98,173.97,2.8773]
[1730025363296,2.8767,174.01,173.97,2.8773]
[1730025363495,4.12,174.0,173.97,2.8773]
[1730025364191,58.3667,174.06,173.91,1.2407]
[1730025364491,4.12,174.05,173.91,1.2407]
[1730025366389,4.12,174.05,173.99,2.8769]
[1730025367392,58.3667,174.06,173.91,1.2407]
[1730025367586,4.12,174.05,173.91,1.2407]
[1730025367783,4.12,174.05,174.01,2.8765]
[1730025370193,6.996,174.05,174.01,2.8765]
[1730025372187,4.12,174.05,173.95,2.3614]
[1730025372599,4.12,174.04,173.95,2.3614]
[1730025374000,4.12,174.04,174.02,2.8764]
[1730025382005,4.12,174.04,173.95,2.3614]
[1730025382302,2.8764,174.03,173.95,2.3614]
[1730025383404,2.8764,174.03,173.99,2.8769]
[1730025383792,2.8765,174.02,173.95,2.3614]
[1730025383996,2.8765,174.02,173.98,2.8771]
[1730025387307,2.8763,174.03,173.99,2.877]
[1730025393315,4.12,174.04,173.95,1.2013]
[1730025393515,2.8769,174.0,173.95,1.2013]
[1730025393715,4.12,173.99,173.95,1.2013]
[1730025394316,4.12,173.99,173.91,2.4162]
[1730025394517,4.12,173.99,173.91,3.6265]
[1730025395314,4.12,173.99,173.97,2.8773]
[1730025401625,6.9971,173.99,173.94,2.8776]
[1730025402022,6.9971,173.99,173.91,3.6265]
[1730025402629,6.9971,173.99,173.95,2.8775]
[1730025403032,4.12,173.99,173.91,3.6265]
[1730025404339,4.12,173.99,173.96,2.8773]
[1730025408737,4.12,173.99,173.97,2.8773]
[1730025419347,4.12,173.99,173.91,2.4162]
[1730025419648,6.997,173.99,173.95,2.8776]
[1730025424748,4.12,173.99,173.91,2.4162]
[1730025425356,4.12,173.98,173.97,2.8773]
[1730025425546,4.12,173.98,173.91,2.4162]
[1730025426245,4.12,173.98,173.97,2.8773]
[1730025427257,4.12,173.99,173.98,2.8771]
[1730025433953,4.12,173.99,173.91,2.4162]
[1730025434155,4.12,173.99,173.97,2.8773]
[1730025442356,2.8774,173.97,173.92,2.8781]
[1730025442558,2.8774,173.97,173.83,4.12]
[1730025442760,2.8774,173.97,173.84,1.05769875]
[1730025444163,2.8774,173.97,173.85,81.88043374]
[1730025445260,2.8777,173.95,173.91,2.8783]
[1730025445463,4.12,173.94,173.85,81.88043374]
[1730025445866,4.12,173.94,173.92,2.8781]
[1730025448658,4.12,173.94,173.85,81.88043374]
[1730025448862,4.12,173.94,173.93,2.878]
[1730025451658,4.12,173.94,173.92,2.8781]
[1730025459269,4.12,173.94,173.85,81.88043374]
[1730025459476,6.9979,173.94,173.85,81.88043374]
[1730025459974,4.12,173.94,173.9,2.8784]
[1730025461068,4.12,173.94,173.91,2.8783]
[1730025465072,4.12,173.93,173.85,81.88043374]
[1730025465472,3.7119,174.0,173.93,2.878]
[1730025465473,2.8773,173.98,173.93,2.878]
[1730025465777,4.12,173.97,173.87,4.12]
[1730025466074,4.12,173.97,173.96,2.8775]
[1730025466773,2.8769,174.0,173.96,2.8775]
[1730025466975,4.12,173.99,173.96,2.8775]
[1730025467476,115.37182834,174.03,173.97,2.8773]
[1730025467676,4.12,174.02,173.97,2.8773]
[1730025469376,2.8767,174.01,173.97,2.8773]
[1730025478482,4.12,174.02,173.97,2.8773]
[1730025479283,2.8769,174.0,173.97,2.8773]
[1730025480887,2.877,173.99,173.95,2.8775]
[1730025481191,4.1,173.98,173.88,3.6539]
[1730025482186,4.1,173.98,173.95,2.8775]
[1730025494695,4.1,173.98,173.92,2.8781]
[1730025494896,4.1,173.98,173.88,3.6539]
[1730025496501,4.1,173.98,173.97,2.8772]
[1730025507800,4.1,173.98,173.89,4.1]
[1730025508507,4.1,173.98,173.95,2.8775]
[1730025517812,115.37182834,174.03,173.89,4.1]
[1730025518015,2.8765,174.02,173.97,2.8772]
[1730025518308,4.1,174.01,173.97,2.8772]
[1730025519899,6.9767,174.01,173.97,2.8772]
[1730025526314,4.1,174.01,173.89,4.1]
[1730025526508,2.8768,174.0,173.96,2.8774]
[1730025530420,4.1,174.01,173.89,4.1]
[1730025530612,2.877,173.99,173.89,4.1]
[1730025531117,4.1,173.98,173.89,4.1]
[1730025531515,6.9773,173.98,173.89,4.1]
[1730025532021,6.9773,173.98,173.88,3.6539]
[1730025532222,6.9773,173.98,173.94,2.8778]
[1730025532420,4.1,173.98,173.94,2.8778]
[1730025537530,2.8774,173.97,173.92,2.878]
[1730025537717,2.8774,173.97,173.88,3.6539]
[1730025538119,2.8774,173.97,173.92,2.878]
[1730025544341,2.8774,173.97,173.88,3.6539]
[1730025544645,2.8774,173.97,173.93,2.878]
[1730025557958,4.1,173.96,173.88,3.6539]
[1730025558253,115.37182834,174.03,173.89,4.1]
[1730025558254,4.1,173.98,173.89,4.1]
[1730025559352,4.1,173.98,173.97,2.8773]
[1730025563157,4.1,173.98,173.96,2.8774]
[1730025563861,2.8767,174.01,173.96,2.8774]
[1730025564063,4.1,174.0,173.96,2.8774]
[1730025567857,2.8767,174.01,173.96,2.8774]
[1730025568065,4.1,173.99,173.96,2.8774]
[1730025570767,4.1,173.99,173.89,4.1]
[1730025571060,6.9771,173.99,173.94,2.8777]
[1730025572663,4.1,173.99,173.89,76.51433595]
[1730025573866,6.977,173.99,173.94,2.8777]
[1730025579155,2.8778,173.95,173.89,75.29283595]
[1730025579361,6.9778,173.95,173.89,72.41433595]
[1730025580163,6.9778,173.95,173.9,2.8783]
[1730025580772,4.1,173.95,173.89,72.41433595]
[1730025581161,4.1,173.95,173.79,3.665]
[1730025581362,2.8785,173.9,173.84,2.8793]
[1730025581570,4.1,173.89,173.79,3.665]
[1730025582367,4.1,173.89,173.85,2.8793]
[1730025582966,4.1,173.89,173.82,2.8797]
[1730025583172,4.1,173.89,173.79,3.665]
[1730025583567,6.9787,173.89,173.83,2.8795]
[1730025585170,2.8789,173.88,173.82,2.8798]
[1730025587068,2.8789,173.88,173.83,2.8796]
[1730025588366,2.8789,173.88,173.75,2.4233]
[1730025588575,2.8789,173.88,173.84,2.8794]
[1730025590178,4.1,173.89,173.75,2.4233]
[1730025590383,6.9786,173.89,173.76,1.0581681]
[1730025590679,6.9786,173.89,173.75,2.4233]
[1730025590881,6.9786,173.89,173.76,1.05816708]
[1730025591972,6.9786,173.89,173.83,2.8795]
[1730025593683,6.9786,173.89,173.84,2.8794]
[1730025594474,2.4448,173.93,173.75,2.4233]
[1730025594679,4.1,173.92,173.76,1.05816597]
[1730025594872,2.8783,173.91,173.86,2.879]
[1730025595078,4.1,173.9,173.78,4.1]
[1730025595274,4.1,173.9,173.78,9.861]
[1730025595480,4.1,173.9,173.89,2.8785]
[1730025595782,102.08772556,173.96,173.84,4.1]
[1730025595981,4.1,173.95,173.94,2.8778]
[1730025596178,4.1,173.95,173.85,3.6951]
[1730025596974,4.1,173.95,173.92,2.8781]
[1730025597987,4.1,173.95,173.85,3.6951]
[1730025598178,4.1,173.95,173.91,2.8783]
[1730025599186,4.1,173.95,173.85,3.6951]
[1730025599884,4.1,173.95,173.89,2.8785]
[1730025600091,4.1,173.95,173.85,3.6951]
[1730025600679,6.9778,173.95,173.89,2.8786]
[1730025600984,4.1,173.95,173.85,3.6951]
[1730025601290,2.8781,173.92,173.86,2.879]
[1730025601586,4.1,173.91,173.86,2.879]
[1730025601792,4.1,173.91,173.88,2.8787]
[1730025601991,4.1,173.91,173.85,3.6951]
[1730025602492,4.1,173.91,173.89,2.8785]
[1730025603589,4.1,173.91,173.85,3.6951]
[1730025603790,4.1,173.91,173.88,2.8788]
[1730025606989,4.1,173.91,173.85,3.6951]
[1730025607190,4.1,173.94,173.86,4.1]
[1730025607397,4.1,173.95,173.86,4.1]
[1730025607595,4.1,173.95,173.91,2.8782]
[1730025609393,4.1,173.95,173.86,4.1]
[1730025609597,4.1,173.95,173.92,2.8781]
[1730025610493,4.1,173.95,173.93,2.8778]
[1730025611195,4.1,173.96,173.93,2.8778]
[1730025612097,3.5415,174.0,173.86,4.1]
[1730025612298,4.1,173.99,173.95,2.8776]
[1730025617903,4.1,173.99,173.86,4.1]
[1730025618103,4.1,173.99,173.96,2.8774]
[1730025621405,2.8767,174.01,173.91,2.4662]
[1730025621617,2.4647,174.09,173.98,2.877]
[1730025621618,4.1,174.0,173.98,2.877]
[1730025625916,4.1,174.0,173.97,2.8772]
[1730025629412,1.2412,174.08,173.92,4.1]
[1730025629617,4.1,174.04,174.0,2.8768]
[1730025631214,2.876,174.05,174.0,2.8768]
[1730025631416,4.1,174.04,174.0,2.8768]
[1730025632609,4.1,174.04,173.92,4.1]
[1730025632610,4.1,174.04,174.01,2.8765]
[1730025648128,4.1,174.04,173.93,4.1]
[1730025648333,4.1,174.04,173.91,75.5688958]
[1730025648527,4.1,174.04,173.92,4.1]
[1730025649032,2.8766,174.02,173.92,4.1]
[1730025649627,2.8766,174.02,173.97,2.8772]
[1730025653435,4.1,174.04,173.92,4.1]
[1730025654038,2.8764,174.03,173.99,2.877]
[1730025654330,4.1,174.04,173.99,2.877]
[1730025654832,6.9762,174.04,173.99,2.877]
[1730025657128,4.1,174.04,174.01,2.8766]
[1730025657536,4.1,174.04,173.92,4.1]
[1730025657728,4.1,174.04,174.02,2.8765]
[1730025661038,2.9097357,174.1,173.91,78.51207226]
[1730025661039,4.08,174.07,173.96,4.08]
[1730025661340,4.08,174.07,173.97,7.7492]
[1730025663238,4.08,174.07,174.03,2.8763]
[1730025678652,2.8755,174.08,174.03,2.8763]
[1730025678852,4.08,174.07,174.03,2.8763]
[1730025681358,4.08,174.07,173.97,7.7492]
[1730025682357,4.08,174.07,174.03,2.8762]
[1730025683155,4.08,174.1,174.06,2.8758]
[1730025686959,6.9552,174.1,174.06,2.8758]
[1730025688355,2.8755,174.08,174.03,2.8762]
[1730025688558,4.08,174.1,173.97,3.6692]
[1730025688852,2.876,174.05,174.01,2.8765]
[1730025689054,4.08,174.04,173.97,3.6692]
[1730025689559,4.08,174.04,174.0,2.8767]
[1730025689763,4.08,174.04,173.97,3.6692]
[1730025690968,6.9563,174.04,173.97,3.6692]
[1730025691367,4.08,174.04,173.97,3.6692]
[1730025691567,2.8764,174.03,173.97,3.6692]
[1730025691967,2.8764,174.03,173.97,1.2521]
[1730025693364,2.8764,174.03,173.98,2.8771]
[1730025697972,2.8758,174.06,174.01,2.8766]
[1730025698170,4.08,174.05,174.01,2.8766]
[1730025698772,6.956,174.05,174.0,2.8767]
[1730025701968,4.08,174.05,173.97,1.2521]
[1730025702279,1.1868,174.09,173.97,1.2521]
[1730025702479,4.08,174.08,173.98,2.4705]
[1730025702680,6.9555,174.08,174.02,2.8763]
[1730025703579,4.08,174.08,174.02,2.8763]
[1730025703882,2.8757,174.07,174.02,2.8763]
[1730025704780,2.8757,174.07,174.03,2.8763]
[1730025708477,4.08,174.08,173.98,2.4705]
[1730025708682,4.08,174.07,174.04,2.8762]
[1730025709276,6.9557,174.07,174.04,2.8762]
[1730025710181,4.08,174.07,174.06,2.8757]
[1730025713088,4.08,174.07,173.98,2.4705]
[1730025713278,4.08,174.07,174.05,2.8759]
[1730025715288,4.08,174.07,173.98,2.4705]
[1730025715490,4.08,174.07,174.03,2.8762]
[1730025716284,2.8759,174.06,173.98,2.4705]
[1730025717087,2.8759,174.06,174.01,2.8765]
[1730025717289,6.9557,174.07,173.98,2.4705]
[1730025718192,4.08,174.07,173.97,1.2521]
[1730025718398,2.8768,174.01,173.96,2.8774]
[1730025718594,4.08,174.0,173.96,2.8774]
[1730025724997,2.8774,173.97,173.92,6.5423]
[1730025725202,4.08,174.0,173.92,3.6643]
[1730025727395,2.877,173.99,173.94,2.8778]
[1730025728196,6.9569,174.0,173.94,2.8778]
[1730025729696,6.9569,174.0,173.95,2.8776]
[1730025730897,6.9569,174.0,173.91,71.8248958]
[1730025730898,4.08,174.0,173.91,71.8248958]
[1730025731100,2.8772,173.98,173.93,2.878]
[1730025731298,1.2094,173.99,173.91,71.8248958]
[1730025731703,2.4991,173.98,173.83,7.6705]
[1730025732408,2.4991,173.98,173.83,3.5905]
[1730025732802,2.8779,173.94,173.89,2.8785]
[1730025733004,4.08,173.93,173.89,2.8785]
[1730025733895,4.08,173.93,173.83,3.5905]
[1730025734093,4.08,173.93,173.86,2.8791]